bitfinex-derivatives/quotes_ETHF0:USTF0_20250929
["timestamp","ask_amount","ask_price","bid_price","bid_amount"]
[1759173688814,50.4987519,4173.8,4173.7,0.00292359]
[1759173689219,45.7437519,4173.8,4173.7,0.21612359]
[1759173689718,45.7437519,4173.8,4173.7,0.00292359]
[1759173690214,45.0677819,4173.8,4173.7,1.19480359]
[1759173690420,4.5127819,4173.8,4173.7,1.19480359]
[1759173690612,4.02436839,4173.8,4173.7,1.19480359]
[1759173690813,3.47926839,4173.8,4173.7,1.19480359]
[1759173691407,3.80156839,4173.8,4173.7,1.19480359]
[1759173693017,4.01436839,4173.8,4173.7,1.19480359]
[1759173693226,4.44533839,4173.8,4173.7,0.00292359]
[1759173693521,4.01436839,4173.8,4173.7,0.64710359]
[1759173693721,3.76936839,4173.8,4173.7,1.19480359]
[1759173693919,4.01436839,4173.8,4173.7,1.19480359]
[1759173694720,1.01036839,4173.8,4173.7,1.19480359]
[1759173697525,1.01036839,4173.8,4173.7,0.43390359]
[1759173698031,1.44133839,4173.8,4173.7,0.43390359]
[1759173698525,1.01036839,4173.8,4173.7,0.43390359]
[1759173699924,1.44133839,4173.8,4173.7,0.43390359]
[1759173700125,1.01036839,4173.8,4173.7,0.43390359]
[1759173702124,1.44133839,4173.8,4173.7,0.43390359]
[1759173702623,0.43102,4173.5,4173.4,0.43101]
[1759173702824,1.17593,4173.3,4173.2,0.43103]
[1759173703020,1.42093,4173.3,4173.2,0.43103]
[1759173703530,1.17595,4173.1,4173.0,0.43105]
[1759173703726,0.7449,4173.1,4173.0,0.43305209]
[1759173704225,0.7449,4173.1,4173.0,0.64625209]
[1759173704423,1.17595,4173.1,4173.0,0.64625209]
[1759173704729,1.17595,4173.1,4173.0,0.97865209]
[1759173705925,1.17595,4173.1,4173.0,0.64625209]
[1759173706327,0.7449,4173.1,4173.0,0.64625209]
[1759173706526,0.7449,4173.1,4173.0,1.19395209]
[1759173706721,0.1276,4173.5,4173.4,0.43101]
[1759173706924,1.5485,4173.5,4173.4,1.19191]
[1759173707121,42.3485,4173.5,4173.4,1.19191]
[1759173707525,41.9175,4173.5,4173.4,1.19191]
[1759173708128,42.3485,4173.5,4173.4,0.64421]
[1759173709930,41.6725,4173.5,4173.4,0.64421]
[1759173710118,41.5449,4173.5,4173.4,1.19191]
[1759173710325,41.7899,4173.5,4173.4,1.19191]
[1759173710628,41.9175,4173.5,4173.4,1.19191]
[1759173710841,41.9175,4173.5,4173.4,0.64421]
[1759173711331,41.1726,4173.5,4173.0,0.54760209]
[1759173711525,1.17593,4173.3,4173.2,0.43103]
[1759173711724,1.42093,4173.3,4173.2,0.43103]
[1759173711932,0.9899,4173.3,4173.2,0.43103]
[1759173712225,1.17588,4173.7,4173.6,0.97659]
[1759173712426,1.47847646,4173.7,4173.6,0.97659]
[1759173712731,42.70945646,4173.7,4173.6,0.85949]
[1759173712932,42.70945646,4173.7,4173.6,0.2132]
[1759173713133,0.85361,4173.4,4173.3,0.43101]
[1759173713333,1.17591,4173.4,4173.3,0.43101]
[1759173713729,0.7449,4173.4,4173.3,0.43101]
[1759173714235,1.17591,4173.4,4173.3,0.43101]
[1759173714533,0.7551,4173.2,4173.1,0.43104]
[1759173714730,1.18615,4173.1,4173.0,0.00200209]
[1759173714932,0.7551,4173.1,4173.0,0.43306209]
[1759173715632,41.5551,4173.1,4173.0,0.43306209]
[1759173715832,41.98615,4173.1,4173.0,0.43306209]
[1759173716630,41.98615,4173.1,4173.0,0.00200209]
[1759173717130,0.3636,4172.0,4171.9,1.27796103]
[1759173717329,1.1358,4172.0,4171.9,0.65127]
[1759173717531,1.1358,4172.0,4171.9,0.96837]
[1759173718036,1.0001,4172.0,4171.9,1.18563898]
[1759173718236,0.245,4172.0,4171.9,6.18563898]
[1759173719137,0.4605,4172.0,4171.9,1.18563898]
[1759173719334,0.245,4172.0,4171.9,1.18563898]
[1759173720232,1.0001,4172.0,4171.9,1.18563898]
[1759173721434,1.0001,4172.0,4171.9,0.75446898]
[1759173721735,1.56696,4172.0,4171.9,0.00286898]
[1759173722639,42.36696,4172.0,4171.9,0.00286898]
[1759173724532,0.7551,4171.2,4171.1,0.0239]
[1759173724739,0.7551,4171.2,4171.1,0.45515]
[1759173724937,0.7551,4171.2,4170.8,0.3171]
[1759173724938,0.4434,4170.9,4170.8,0.43128]
[1759173725132,0.8908,4170.5,4170.4,0.90743112]
[1759173725440,0.8908,4170.5,4170.4,1.44067392]
[1759173725441,1.00250579,4170.5,4170.4,1.44067392]
[1759173727736,1.13820579,4170.5,4170.4,0.25775392]
[1759173728142,1.13820579,4170.5,4169.9,0.43137]
[1759173728143,0.43136,4170.1,4169.9,0.43137]
[1759173728343,1.1358,4170.0,4169.9,0.43138]
[1759173728743,1.56717,4170.0,4169.4,0.3171]
[1759173729044,0.7551,4169.9,4169.8,1.18298]
[1759173729343,41.5551,4170.4,4170.3,0.65143]
[1759173729545,41.8001,4170.4,4170.3,0.65143]
[1759173729847,41.8001,4170.4,4170.3,0.43133]
[1759173731146,41.8001,4170.4,4170.3,0.65143]
[1759173731736,41.8001,4170.4,4170.3,0.43133]
[1759173732551,41.8001,4170.4,4169.8,0.0017047]
[1759173732747,0.5791,4170.0,4169.9,0.65148]
[1759173733047,1.1358,4170.0,4169.9,0.65148]
[1759173733943,1.1358,4170.0,4169.9,1.18298]
[1759173734246,1.1358,4170.0,4169.9,0.43138]
[1759173734441,1.1358,4170.0,4169.8,0.0017047]
[1759173734641,1.18838,4169.9,4169.8,0.4330947]
[1759173734840,0.757,4169.9,4169.8,0.4330947]
[1759173736344,0.757,4169.9,4169.8,1.1892947]
[1759173736651,1.002,4169.9,4169.8,1.1892947]
[1759173738147,0.757,4169.9,4169.8,1.1892947]
[1759173738347,0.4503,4169.9,4169.8,1.1892947]
[1759173738547,0.245,4169.9,4169.8,1.1892947]
[1759173740054,0.4503,4169.9,4169.8,1.1892947]
[1759173740456,0.7788,4169.9,4169.8,1.1892947]
[1759173740656,0.4503,4169.9,4169.8,1.1892947]
[1759173741358,0.2053,4170.4,4170.3,1.18753]
[1759173741655,0.4503,4170.4,4170.3,1.18753]
[1759173741960,0.7788,4170.4,4170.3,1.18753]
[1759173742157,1.002,4170.4,4170.3,1.18753]
[1759173742660,0.4503,4170.4,4170.3,1.18753]
[1759173742860,0.245,4170.4,4170.3,1.18753]
[1759173743066,0.00240579,4170.5,4170.4,1.18752]
[1759173743253,0.4312,4171.7,4170.4,1.18752]
[1759173743254,0.5338,4171.7,4171.6,0.7562]
[1759173743446,0.857,4171.7,4171.6,0.872]
[1759173743763,0.5583,4171.5,4171.4,0.65001]
[1759173743954,0.8868,4171.5,4171.4,0.65001]
[1759173744353,0.88877694,4171.5,4171.4,0.65001]
[1759173744548,0.88877694,4171.5,4171.4,0.87201]
[1759173744756,0.88877694,4171.5,4171.4,1.20201]
[1759173747354,0.88877694,4171.5,4171.4,0.87201]
[1759173748160,0.88877694,4171.5,4171.4,1.20201]
[1759173748355,1.31998694,4171.5,4171.4,0.43122]
[1759173749457,0.88877694,4171.5,4171.4,0.64192]
[1759173749854,0.88877694,4171.5,4171.4,0.43122]
[1759173750053,0.88877694,4171.5,4170.9,1.07819]
[1759173750261,0.7544,4171.0,4170.9,1.18497]
[1759173751362,0.2254,4171.0,4170.9,1.18497]
[1759173751561,0.4694,4171.2,4171.1,0.85495]
[1759173751759,0.4694,4171.2,4171.1,1.18495]
[1759173752156,0.00197694,4171.5,4171.4,1.18492]
[1759173752364,0.54067694,4171.5,4171.4,1.18492]
[1759173753765,0.75637694,4171.5,4171.4,1.18492]
[1759173754163,0.00197694,4171.5,4171.4,6.18492]
[1759173757563,0.00197694,4171.5,4171.4,6.42892]
[1759173758955,0.00197694,4171.5,4171.4,6.18492]
[1759173759161,0.00197694,4171.5,4171.4,6.42892]
[1759173759570,0.00197694,4171.5,4171.4,1.42892]
[1759173760566,0.8835,4172.5,4172.4,1.18482]
[1759173761671,1.3176196,4172.5,4172.4,0.64182]
[1759173761869,1.3176196,4172.5,4172.4,0.43112]
[1759173762265,0.2254,4172.1,4172.0,0.33]
[1759173762470,0.8835,4171.5,4171.4,0.43122]
[1759173762769,0.8835,4171.5,4171.4,0.64192]
[1759173763162,0.8835,4171.5,4171.4,0.43122]
[1759173764267,0.7544,4171.5,4171.4,1.18492]
[1759173764471,0.2254,4171.5,4171.4,1.18492]
[1759173764666,0.2254,4171.7,4171.6,1.1849]
[1759173765174,0.5387,4171.7,4171.6,1.1849]
[1759173765362,0.5387,4171.7,4171.6,0.4312]
[1759173765363,0.7544,4171.7,4171.6,0.4312]
[1759173766067,0.7544,4171.7,4171.6,0.6419]
[1759173767464,0.7544,4171.7,4171.6,1.1849]
[1759173768068,0.7544,4171.7,4171.6,0.8549]
[1759173769070,0.7544,4171.7,4171.6,1.1849]
[1759173770372,0.2254,4171.7,4171.6,1.1849]
[1759173771178,0.5387,4171.7,4171.6,1.1849]
[1759173771772,0.7544,4171.7,4171.6,1.1849]
[1759173773272,0.244,4171.8,4171.6,1.1849]
[1759173773273,0.244,4171.8,4171.7,0.43119]
[1759173773472,0.7574096,4172.5,4172.4,1.18482]
[1759173773672,1.0014096,4172.5,4172.4,1.18482]
[1759173776181,0.4724096,4172.5,4172.4,1.18482]
[1759173776383,0.2470096,4172.5,4172.4,1.18482]
[1759173777576,0.0030096,4172.5,4172.4,1.18482]
[1759173778676,0.5685096,4172.5,4172.4,1.18482]
[1759173778978,0.2271096,4172.5,4172.4,1.18482]
[1759173779183,0.0030096,4172.5,4172.4,1.18482]
[1759173779581,0.5685096,4172.5,4172.4,1.18482]
[1759173780385,0.2271096,4172.5,4172.4,1.18482]
[1759173781591,0.0030096,4172.5,4172.4,1.18482]
[1759173782887,9.6e-06,4172.5,4172.4,2.70678103]
[1759173783087,9.6e-06,4172.5,4172.4,1.42882]
[1759173783287,9.6e-06,4172.5,4172.4,2.7079045]
[1759173789191,9.6e-06,4172.5,4172.4,1.42882]
[1759173796697,0.5495096,4172.5,4172.4,1.42882]
[1759173797094,0.5495096,4172.5,4172.4,2.7079045]
[1759173797299,0.2158096,4172.5,4172.4,2.7079045]
[1759173797499,9.6e-06,4172.5,4172.4,2.3779045]
[1759173798000,0.7636096,4172.5,4172.4,0.85482]
[1759173798203,0.7636096,4172.5,4172.4,1.18262]
[1759173799689,0.2158096,4172.5,4172.4,1.18262]
[1759173800298,0.2158096,4172.5,4172.4,2.4617045]
[1759173800499,9.6e-06,4172.5,4172.4,2.1339045]
[1759173801189,0.2158096,4172.5,4172.4,2.1339045]
[1759173801392,0.7636096,4172.5,4172.4,2.1339045]
[1759173801797,0.7636096,4172.5,4172.4,2.4617045]
[1759173802197,0.7636096,4172.5,4172.4,1.18262]
[1759173802597,9.6e-06,4172.5,4172.4,0.85482]
[1759173804608,0.3191,4173.4,4172.5,0.1321]
[1759173804909,0.7551,4173.9,4173.8,0.96237]
[1759173805100,1.24458088,4173.9,4173.8,0.63657]
[1759173805610,1.24726509,4173.9,4173.8,0.63831245]
[1759173806103,1.24726509,4173.9,4173.8,1.18111245]
[1759173806406,1.24726509,4173.9,4173.8,0.63831245]
[1759173808001,1.24726509,4173.9,4173.8,0.43271245]
[1759173809108,1.24726509,4173.9,4173.8,0.63831245]
[1759173810313,0.75778421,4173.9,4173.8,0.43271245]
[1759173810510,1.24713892,4173.9,4173.8,0.43271245]
[1759173810705,0.431,4173.6,4173.1,1.28050892]
[1759173811006,0.7551,4173.2,4173.1,0.43104]
[1759173811401,41.5551,4173.2,4173.1,0.43104]
[1759173811911,41.5551,4173.2,4173.1,0.43359925]
[1759173813112,41.5551,4173.2,4173.1,1.18199925]
[1759173814106,0.7551,4173.2,4173.1,1.18199925]
[1759173814310,0.43098,4173.8,4173.7,1.17938]
[1759173814311,0.2266,4173.8,4173.7,1.17938]
[1759173814510,0.7551,4173.8,4173.7,0.63658]
[1759173814706,0.9991,4173.8,4173.7,0.43098]
[1759173818009,0.9991,4173.8,4173.2,2.35756531]
[1759173818010,0.9991,4173.8,4173.2,1.27998531]
[1759173818211,0.3191,4173.2,4173.1,0.43359925]
[1759173818416,0.7551,4173.2,4173.1,1.18199925]
[1759173818708,0.2266,4173.4,4173.3,0.2056]
[1759173818912,0.7551,4173.8,4173.7,0.7484]
[1759173819109,0.7551,4173.8,4173.7,1.17938]
[1759173819512,0.7551,4173.8,4173.7,0.43098]
[1759173819814,0.7551,4173.8,4173.7,0.96238]
[1759173820015,0.7551,4173.8,4173.7,1.17938]
[1759173823314,0.7551,4173.8,4173.7,0.43098]
[1759173823816,0.7551,4173.8,4173.7,0.63658]
[1759173824214,0.7551,4173.8,4173.7,0.43098]
[1759173824817,0.7551,4173.8,4173.7,0.63658]
[1759173825817,0.7551,4173.8,4173.7,0.96238]
[1759173826710,0.7551,4173.8,4173.7,1.17938]
[1759173827317,0.00268421,4173.9,4173.8,0.85357]
[1759173827517,0.24668421,4173.9,4173.8,1.17937]
[1759173827718,1.00178421,4173.9,4173.8,1.17937]
[1759173827919,41.80178421,4173.9,4173.8,0.43097]
[1759173828219,41.80178421,4173.9,4173.8,0.63657]
[1759173829912,41.80178421,4173.9,4173.8,0.96237]
[1759173830617,41.80178421,4173.9,4173.8,1.17937]
[1759173834222,41.80178421,4173.9,4173.8,0.43097]
[1759173834428,41.80178421,4173.9,4173.8,0.65737]
[1759173834726,41.80178421,4173.9,4173.8,1.19637]
[1759173834926,41.80178421,4173.9,4173.8,0.87707]
[1759173835127,41.80178421,4173.9,4173.8,0.65737]
[1759173836922,41.80178421,4173.9,4173.8,1.19637]
[1759173837124,0.75778421,4173.9,4173.8,1.19637]
[1759173837624,0.00268421,4173.9,4173.8,6.19637]
[1759173838133,0.00268421,4173.9,4173.8,7.47635531]
[1759173838529,0.00268421,4173.9,4173.8,6.19637]
[1759173838725,0.21658421,4173.9,4173.8,6.19637]
[1759173838930,0.55628421,4173.9,4173.8,6.19637]
[1759173839425,0.78188421,4173.9,4173.8,6.19637]
[1759173840526,0.21658421,4173.9,4173.8,6.19637]
[1759173840727,0.2139,4174.5,4174.4,0.4461]
[1759173841033,0.7792,4174.5,4174.4,1.19631]
[1759173841236,0.9048,4174.5,4174.4,1.19631]
[1759173841732,0.90759554,4174.5,4174.4,0.43091]
[1759173841935,0.7792,4174.4,4174.3,0.43092]
[1759173843226,1.21011,4174.4,4174.3,0.43092]
[1759173843426,0.55930554,4174.5,4174.4,0.43091]
[1759173843627,1.48796196,4174.5,4174.4,0.43091]
[1759173844026,1.82766196,4174.5,4174.4,0.43091]
[1759173844428,0.87042,4174.3,4174.2,0.43092]
[1759173844621,1.26835642,4174.3,4174.2,0.43092]
[1759173845033,1.69927642,4174.3,4174.2,0.43092]
[1759173845730,1.21015,4174.1,4174.0,0.43095]
[1759173845930,1.21015,4174.1,4173.3,0.3193]
[1759173845931,0.1256,4173.5,4173.3,2.35754531]
[1759173846131,0.7792,4173.4,4173.3,2.47640531]
[1759173846538,41.5792,4173.4,4173.3,2.47640531]
[1759173847436,41.5792,4173.4,4173.3,1.19642]
[1759173848138,41.5792,4173.4,4173.3,2.47640531]
[1759173849842,41.5792,4173.4,4173.3,1.19642]
[1759173850044,0.7792,4173.4,4173.3,1.19642]
[1759173850743,0.7792,4173.4,4173.3,0.87712]
[1759173850944,0.7792,4173.4,4173.3,1.71073938]
[1759173851450,0.7792,4173.4,4173.3,1.93713938]
[1759173853546,0.7792,4173.4,4173.3,2.25643938]
[1759173854052,0.7792,4173.4,4173.3,2.47613938]
[1759173855248,0.7792,4173.4,4173.3,2.47634498]
[1759173855451,0.7477,4174.0,4173.9,1.19586]
[1759173855655,0.9917,4174.0,4173.9,1.19586]
[1759173856050,1.1279,4174.0,4173.9,1.19586]
[1759173859057,1.1279,4174.0,4173.9,0.85566]
[1759173859962,1.1279,4174.0,4173.9,1.19586]
[1759173860461,0.9917,4174.0,4173.9,1.19586]
[1759173860663,0.7826,4174.0,4173.9,1.19586]
[1759173860850,0.5386,4174.0,4173.9,1.19586]
[1759173861046,0.4524,4174.0,4173.9,1.19586]
[1759173862147,0.2084,4174.0,4173.9,1.19586]
[1759173862348,0.4524,4174.0,4173.9,1.19586]
[1759173862557,1.1279,4174.0,4173.9,1.19586]
[1759173862954,1.1279,4174.0,4173.9,0.85566]
[1759173863262,1.1279,4174.0,4173.9,0.64986]
[1759173863655,1.1279,4174.0,4173.9,0.43096]
[1759173865258,1.55885,4174.0,4173.9,0.43096]
[1759173865658,1.61672616,4174.0,4173.9,0.43096]
[1759173865862,2.04767616,4174.0,4173.9,0.43096]
[1759173866165,1.61672616,4174.0,4173.9,0.43096]
[1759173868362,0.3349,4173.9,4173.8,0.43097]
[1759173868568,0.7734,4173.9,4173.8,0.43097]
[1759173871063,1.20436,4173.9,4173.8,0.43097]
[1759173871469,0.7734,4173.9,4173.8,0.96097]
[1759173871767,0.7734,4173.9,4173.8,1.18327]
[1759173875271,0.244,4174.0,4173.9,0.86886]
[1759173875466,0.8027,4174.0,4173.9,1.18326]
[1759173875672,1.29177704,4174.0,4173.9,1.18326]
[1759173875872,1.50647704,4174.0,4173.9,1.18326]
[1759173877271,0.43097,4173.9,4173.6,0.3144]
[1759173877576,0.7734,4173.7,4173.6,0.64659]
[1759173877775,1.0164,4173.7,4173.6,0.64659]
[1759173878071,1.0164,4173.7,4173.6,1.18329]
[1759173883571,1.0164,4173.7,4173.6,2.46306291]
[1759173883572,0.243,4173.7,4173.6,2.46306291]
[1759173885482,0.5587,4174.2,4174.1,1.18324]
[1759173885776,0.95594854,4174.2,4174.1,1.18324]
[1759173885978,1.29084854,4174.2,4174.1,1.18324]
[1759173886481,1.50554854,4174.2,4174.1,1.18324]
[1759173900893,1.50554854,4174.2,4174.1,0.43094]
[1759173902593,0.7744,4173.8,4173.7,1.91873725]
[1759173902791,1.0174,4173.8,4173.7,2.22883725]
[1759173903387,1.0174,4173.8,4173.7,0.63768]
[1759173903694,1.0174,4173.8,4173.7,0.43098]
[1759173904400,1.0174,4173.8,4173.7,0.63768]
[1759173904588,1.0174,4173.8,4173.7,0.84568]
[1759173904785,1.0174,4173.8,4173.7,0.63768]
[1759173905590,1.0174,4173.8,4173.7,0.2067]
[1759173905791,0.434,4173.6,4173.5,0.4549]
[1759173905993,0.7744,4173.6,4173.5,0.4549]
[1759173906190,0.7744,4173.6,4173.5,0.6616]
[1759173906392,0.7744,4173.6,4173.5,0.9717]
[1759173906794,0.7744,4173.6,4173.5,0.6616]
[1759173907190,1.69472844,4173.6,4173.5,0.0239]
[1759173907497,1.26373844,4173.6,4173.5,0.0239]
[1759173907795,42.49472844,4173.6,4173.5,0.0239]
[1759173909290,1.20543,4173.2,4173.1,0.00255925]
[1759173909493,1.93776844,4173.2,4173.1,0.00255925]
[1759173909997,1.93776844,4173.2,4172.0,0.3101]
[1759173909998,0.434,4172.2,4172.0,0.3101]
[1759173910191,1.0174,4172.1,4172.0,0.63786]
[1759173910386,0.7744,4171.8,4171.2,0.3101]
[1759173910694,1.0174,4171.7,4171.6,1.156]
[1759173911097,1.0174,4171.7,4171.6,1.15855107]
[1759173911592,0.7744,4171.7,4171.6,1.15855107]
[1759173911908,0.243,4171.7,4171.6,1.15855107]
[1759173912594,0.5512,4172.4,4172.0,0.4433]
[1759173912896,0.5512,4172.4,4172.3,1.15593]
[1759173913100,0.7182,4172.4,4172.3,1.15593]
[1759173913294,0.9414,4172.4,4172.3,1.15593]
[1759173913598,41.7414,4172.4,4172.3,1.15593]
[1759173914095,0.43108,4172.8,4172.3,1.15593]
[1759173914096,0.3404,4172.8,4172.7,0.85748]
[1759173914294,0.792,4172.8,4172.7,1.18588]
[1759173914598,1.012,4172.8,4172.7,1.18588]
[1759173915799,0.765,4173.1,4173.0,1.18585]
[1759173915992,0.765,4173.4,4173.3,1.18582]
[1759173916301,1.008,4173.4,4173.3,1.18582]
[1759173916600,41.808,4173.4,4173.3,0.85742]
[1759173917200,41.808,4173.4,4173.3,0.64252]
[1759173918501,41.565,4173.4,4173.3,1.18582]
[1759173918690,41.808,4173.4,4173.3,1.18582]
[1759173918893,41.565,4173.4,4173.3,1.18582]
[1759173919289,0.545,4173.7,4173.6,0.4264]
[1759173919591,1.008,4173.7,4173.6,1.18579]
[1759173919792,41.808,4173.7,4173.6,1.18579]
[1759173921006,41.0086,4173.7,4173.6,1.18579]
[1759173921301,0.90289554,4174.5,4174.4,0.64241]
[1759173921503,1.14589554,4174.5,4174.4,0.97081]
[1759173921704,41.94589554,4174.5,4174.4,0.97081]
[1759173921906,42.37679554,4174.5,4174.4,0.97081]
[1759173922201,41.94589554,4174.5,4174.4,0.64241]
[1759173922400,41.94589554,4174.5,4174.4,0.97081]
[1759173922604,41.94589554,4174.5,4174.4,0.64241]
[1759173923099,42.37679554,4174.5,4174.4,0.64241]
[1759173924405,42.37679554,4174.5,4174.4,0.43091]
[1759173924703,41.56779554,4174.5,4174.4,1.18611]
[1759173924906,1.14689554,4174.5,4174.4,0.43091]
[1759173926202,1.57779554,4174.5,4174.4,0.43091]
[1759173926403,42.37779554,4174.5,4174.4,0.43091]
[1759173927200,41.56779554,4174.5,4174.4,1.18611]
[1759173927404,41.81079554,4174.5,4174.4,1.18611]
[1759173928202,41.94689554,4174.5,4174.4,1.18611]
[1759173929415,41.94689554,4174.5,4174.4,0.87581]
[1759173929603,41.94689554,4174.5,4174.4,0.65691]
[1759173930305,42.37779554,4174.5,4174.4,0.65691]
[1759173930506,42.37779554,4174.5,4173.6,1.07746]
[1759173930507,1.19973,4174.3,4174.2,0.43092]
[1759173930806,1.44273,4174.3,4174.2,0.43092]
[1759173931701,1.0118,4174.3,4174.2,0.43092]
[1759173931909,1.0118,4174.3,4174.2,0.65692]
[1759173932108,1.0118,4174.3,4174.2,0.96722]
[1759173932607,1.0118,4174.3,4174.2,1.18612]
[1759173934109,40.93889554,4174.5,4174.4,1.18611]
[1759173934110,0.00279554,4174.5,4174.4,1.18611]
[1759173934304,0.24579554,4174.5,4174.4,1.18611]
[1759173934498,0.00021729,4174.5,4174.4,6.18611]
[1759173934807,0.7688,4175.5,4175.4,1.18601]
[1759173935008,0.9539,4175.5,4175.4,1.18601]
[1759173935208,0.9539,4175.5,4175.1,0.43083]
[1759173935409,0.9539,4175.5,4175.0,0.3103]
[1759173935611,0.9539,4175.5,4175.4,0.43081]
[1759173935912,0.95570585,4175.5,4175.4,0.43264894]
[1759173936608,1.38650585,4175.5,4175.4,0.00183894]
[1759173937713,1.38650585,4175.5,4175.4,0.43264894]
[1759173938211,1.38650585,4175.5,4175.4,0.00183894]
[1759173939407,42.18650585,4175.5,4175.4,0.43264894]
[1759173939710,42.18650585,4175.5,4175.4,0.65864894]
[1759173939902,42.18650585,4175.5,4175.4,0.22783894]
[1759173940104,42.18650585,4175.5,4175.4,0.65864894]
[1759173940606,1.14970585,4175.5,4175.4,1.18784894]
[1759173941998,1.58050585,4175.5,4175.4,0.00183894]
[1759173943013,1.14970585,4175.5,4175.4,1.18784894]
[1759173943614,1.58050585,4175.5,4175.4,0.65864894]
[1759173945007,1.14970585,4175.5,4175.4,0.65864894]
[1759173945207,1.14970585,4175.5,4175.4,1.18784894]
[1759173945615,0.77060585,4175.5,4175.4,1.18784894]
[1759173945916,1.01360585,4175.5,4175.4,1.18784894]
[1759173946610,0.24480585,4175.5,4175.4,1.18784894]
[1759173946806,1.01360585,4175.5,4175.4,1.18784894]
[1759173947114,1.14970585,4175.5,4175.4,0.87754894]
[1759173947812,1.14970585,4175.5,4175.4,1.18784894]
[1759173948113,1.01360585,4175.5,4175.4,1.18784894]
[1759173949607,0.00180585,4175.5,4175.4,1.18784894]
[1759173953216,0.2062,4175.7,4175.6,1.18599]
[1759173953513,0.5426,4175.7,4175.6,1.18599]
[1759173953920,0.2062,4175.7,4175.6,1.18599]
[1759173954223,0.20892496,4175.7,4175.6,1.18599]
[1759173956437,0.00272496,4175.7,4175.6,1.18599]
[1759173957030,0.53492496,4175.7,4175.6,1.18599]
[1759173957227,0.74262496,4175.7,4175.6,1.18599]
[1759173958132,0.00272496,4175.7,4175.6,1.18599]
[1759173965337,0.53492496,4175.7,4175.6,1.18599]
[1759173965534,0.00272496,4175.7,4175.6,1.18599]
[1759173966046,0.00272496,4175.7,4175.6,2.46704725]
[1759173966542,0.00272496,4175.7,4175.6,1.18599]
[1759173967534,0.53492496,4175.7,4175.6,1.18599]
[1759173968339,0.21112496,4175.7,4175.6,1.18599]
[1759173968733,0.00272496,4175.7,4175.6,1.18599]
[1759173968942,0.53492496,4175.7,4175.6,2.46276185]
[1759173970539,0.53492496,4175.7,4175.6,1.18599]
[1759173972437,0.53492496,4175.7,4175.6,2.46276185]
[1759173972635,0.53492496,4175.7,4175.6,1.18599]
[1759173972838,0.53492496,4175.7,4175.6,2.46276185]
[1759173973144,0.00272496,4175.7,4175.6,2.46276185]
[1759173973546,0.00272496,4175.7,4175.6,1.18599]
[1759173976552,0.00272496,4175.7,4175.6,1.42899]
[1759173976753,0.5314,4176.6,4176.5,0.2133]
[1759173976952,0.4616,4176.7,4176.6,1.18818]
[1759173977152,0.7744,4176.7,4176.6,1.18818]
[1759173977349,0.9969,4176.7,4176.6,1.18818]
[1759173977846,0.9995474,4176.7,4176.6,1.18818]
[1759173978348,0.9995474,4176.7,4176.6,0.43068]
[1759173981648,0.7539,4176.1,4176.0,1.18824]
[1759173981848,0.7539,4176.1,4176.0,0.63994]
[1759173982554,0.7539,4176.1,4176.0,1.18824]
[1759173983454,0.7539,4176.4,4176.3,1.18821]
[1759173983656,1.1846,4176.4,4176.3,0.63991]
[1759173983851,1.1846,4176.4,4176.3,0.43071]
[1759173984351,0.86582,4176.3,4176.2,0.2092]
[1759173984553,1.18252,4176.3,4176.2,0.2092]
[1759173985359,1.18252,4176.3,4176.2,0.63992]
[1759173986755,0.7518,4176.3,4176.2,0.63992]
[1759173987454,1.18251,4176.3,4176.2,0.63992]
[1759173987849,0.99174,4176.0,4175.9,0.5589]
[1759173988049,0.8777,4176.0,4175.9,0.98965]
[1759173988552,1.30844,4176.0,4175.9,0.43075]
[1759173989445,1.30844,4176.0,4175.4,1.27942681]
[1759173989446,0.4308,4175.5,4175.4,1.27942681]
[1759173989646,0.8777,4175.5,4175.4,0.43264894]
[1759173989851,0.8777,4175.5,4175.4,0.65334894]
[1759173990354,1.3085,4175.5,4175.4,0.65334894]
[1759173990956,0.8777,4175.5,4175.4,0.65334894]
[1759173991346,1.3085,4175.5,4175.4,0.65334894]
[1759173992352,1.3085,4175.5,4175.4,0.00183894]
[1759173992556,6.79805834,4175.5,4175.4,0.00183894]
[1759173992951,47.84105834,4175.5,4175.4,0.00183894]
[1759173994559,42.3515,4175.5,4175.4,1.21754894]
[1759173994760,42.84062956,4175.5,4175.4,1.21754894]
[1759173995053,42.84062956,4175.5,4175.4,0.65334894]
[1759173995458,42.3515,4175.5,4175.4,0.65334894]
[1759173996263,41.9207,4175.5,4175.4,0.65334894]
[1759173996661,42.3515,4175.5,4175.4,0.65334894]
[1759173996859,42.3515,4175.5,4175.4,0.00183894]
[1759174004063,42.83995725,4175.5,4175.4,0.00183894]
[1759174004259,42.83995689,4175.5,4175.4,0.00183894]
[1759174004462,42.3515,4175.5,4175.4,0.00183894]
[1759174009466,42.84004518,4175.5,4175.4,0.00183894]
[1759174010470,42.40924518,4175.5,4175.2,0.0239]
[1759174010673,0.4351,4174.3,4174.2,0.65164]
[1759174010974,0.9948,4174.3,4174.2,0.65164]
[1759174011174,0.9948,4174.3,4174.2,1.21584]
[1759174011576,0.9948,4174.3,4174.2,1.21757293]
[1759174013178,0.5429,4174.6,4174.5,1.2158]
[1759174013380,0.7859,4174.6,4174.5,1.2158]
[1759174013572,0.7518,4174.6,4174.5,1.2158]
[1759174013871,1.07698,4175.7,4175.0,0.43084]
[1759174014076,0.7518,4175.1,4175.0,1.21574]
[1759174014275,1.42564,4175.1,4175.0,1.21574]
[1759174015172,0.9948,4175.1,4175.0,1.21574]
[1759174016475,1.42564,4175.1,4175.0,1.21574]
[1759174017182,0.9948,4175.1,4175.0,1.21574]
[1759174017678,0.7518,4175.1,4175.0,1.21574]
[1759174018181,1.42564,4175.1,4175.0,1.21574]
[1759174018982,0.9948,4175.1,4175.0,1.21574]
[1759174019282,1.42564,4175.1,4175.0,1.21574]
[1759174019588,0.9948,4175.1,4175.0,1.21574]
[1759174020680,0.8042,4175.1,4175.0,1.35194]
[1759174021076,1.0132,4175.1,4175.0,1.21574]